fUSD/lending_fUSD_20260427
["ID","MTS","AMOUNT","RATE_DAILY","PERIOD"]
[421245361,1777287108172,-528.14,0.00035068,120]
[421245362,1777287108182,-500.0,0.00035068,120]
[421245363,1777287108192,-1072.38,0.00035068,120]
[421245364,1777287108202,-1314.31,0.00035068,120]
[421245365,1777287108212,-703.47,0.00035068,120]
[421245366,1777287108223,-500.0,0.00035068,120]
[421245367,1777287108233,-500.0,0.00035068,120]
[421245368,1777287108242,-500.0,0.00035068,120]
[421245369,1777287108252,-500.0,0.00035068,120]
[421245370,1777287108263,-516.81,0.00035068,120]
[421245371,1777287108273,-500.0,0.00035068,30]
[421245372,1777287108283,-2357.31,0.00035068,120]
[421245373,1777287108293,-722.01,0.00035068,120]
[421245374,1777287108303,-500.0,0.00035068,120]
[421245375,1777287108313,-500.0,0.00035068,120]
[421245376,1777287108322,-500.0,0.00035068,120]
[421245377,1777287108331,-500.0,0.00035068,120]
[421245378,1777287108341,-1649.9,0.00035068,30]
[421245379,1777287108351,-527.75,0.00035068,120]
[421245380,1777287108361,-500.0,0.00035068,120]
[421245381,1777287108371,-500.0,0.00035068,120]
[421245382,1777287108381,-663.98,0.00035068,120]
[421245383,1777287108391,-752.81,0.00035068,120]
[421245384,1777287108401,-696.22,0.00035068,120]
[421245385,1777287108411,-500.0,0.00035068,120]
[421245386,1777287108420,-500.0,0.00035068,120]
[421245387,1777287108430,-1446.95,0.00035068,120]
[421245388,1777287108440,-964.96,0.00035068,120]
[421245389,1777287108450,-500.0,0.00035068,120]
[421245390,1777287108459,-612.64400743,0.00035068,120]
[421245391,1777287108468,-529.41,0.00035068,120]
[421245392,1777287108478,-500.0,0.00035068,120]
[421245393,1777287108488,-500.0,0.00035068,120]
[421245394,1777287108498,-500.0,0.00035068,120]
[421245395,1777287108508,-1077.32,0.00035068,120]
[421245396,1777287108518,-1000.0,0.00035068,120]
[421245397,1777287108528,-949.83,0.00035068,120]
[421245398,1777287108538,-765.4,0.00035068,120]
[421245399,1777287108548,-599.76,0.00035068,120]
[421245400,1777287108557,-500.0,0.00035068,120]
[421245401,1777287108567,-500.0,0.00035068,120]
[421245402,1777287108576,-500.0,0.00035068,120]
[421245403,1777287108586,-500.0,0.00035068,120]
[421245404,1777287108596,-812.99,0.00035068,120]
[421245405,1777287108606,-500.0,0.00035068,120]
[421245406,1777287108616,-1319.91,0.00035068,120]
[421245407,1777287108625,-559.35,0.00035068,120]
[421245408,1777287108635,-1706.39,0.00035068,120]
[421245409,1777287108644,-294.9077983,0.00035068,120]
[421245410,1777287108654,-500.0,0.00035068,120]
[421245411,1777287108664,-500.0,0.00035068,120]
[421245412,1777287108674,-500.0,0.00035068,120]
[421245413,1777287108684,-500.0,0.00035068,120]
[421245414,1777287108698,-668.63,0.00035068,120]
[421245415,1777287108708,-500.0,0.00035068,120]
[421245416,1777287108718,-1799.8,0.00035068,30]
[421245417,1777287108728,-2310.82,0.00035068,120]
[421245418,1777287108737,-500.0,0.00035068,120]
[421245419,1777287108747,-951.83,0.00035068,120]
[421245420,1777287108757,-500.0,0.00035068,120]
[421245421,1777287108767,-500.0,0.00035068,120]
[421245422,1777287108776,-500.0,0.00035068,120]
[421245423,1777287108786,-500.0,0.00035068,120]
[421245424,1777287108796,-500.0,0.00035068,120]
[421245425,1777287108805,-500.0,0.00035068,120]
[421245426,1777287108815,-500.0,0.00035068,120]
[421245427,1777287108826,-691.55,0.00035068,120]
[421245428,1777287108836,-500.0,0.00035068,120]
[421245429,1777287108846,-500.0,0.00035068,120]
[421245430,1777287108857,-822.42,0.00035068,120]
[421245431,1777287108867,-648.4174604,0.00035068,120]
[421245432,1777287108877,-690.22,0.00035068,120]
[421245433,1777287108887,-1041.51,0.00035068,120]
[421245434,1777287108897,-817.53,0.00035068,120]
[421245435,1777287108907,-500.0,0.00035068,120]
[421245436,1777287108917,-500.0,0.00035068,120]
[421245437,1777287108928,-500.0,0.00035068,120]
[421245438,1777287108938,-812.8,0.00035068,120]
[421245439,1777287108948,-894.99,0.00035068,120]
[421245440,1777287108958,-1018.47,0.00035068,120]
[421245441,1777287108969,-500.0,0.00035068,120]
[421245442,1777287108979,-1560.45,0.00035068,10]
[421245443,1777287108989,-654.65,0.00035068,120]
[421245444,1777287108999,-511.7819576,0.00035068,120]
[421245445,1777287109011,-770.15,0.00035068,120]
[421245446,1777287109021,-747.23,0.00035068,120]
[421245447,1777287109031,-592.21,0.00035068,120]
[421245448,1777287109041,-1047.65,0.00035068,120]
[421245449,1777287109050,-500.0,0.00035068,120]
[421245450,1777287109061,-500.0,0.00035068,120]
[421245451,1777287109071,-500.0,0.00035068,120]
[421245452,1777287109080,-548.93,0.00035068,120]
[421245453,1777287109090,-500.0,0.00035068,120]
[421245454,1777287109100,-500.0,0.00035068,120]
[421245455,1777287109110,-500.0,0.00035068,120]
[421245456,1777287109120,-500.0,0.00035068,120]
[421245457,1777287109130,-1885.25,0.00035068,120]
[421245458,1777287109141,-325.53248547,0.00035068,120]
[421245459,1777287109151,-632.88,0.00035068,120]
[421245460,1777287109161,-810.82,0.00035068,120]
[421245461,1777287109171,-696.25,0.00035068,120]
[421245462,1777287109180,-1242.85,0.00035068,120]
[421245463,1777287109191,-500.0,0.00035068,120]
[421245464,1777287109201,-500.0,0.00035068,120]
[421245465,1777287109211,-500.0,0.00035068,120]
[421245466,1777287109221,-1579.01,0.00035068,120]
[421245467,1777287109230,-500.0,0.00035068,120]
[421245468,1777287109240,-601.37,0.00035068,120]
[421245469,1777287109250,-1456.44,0.00035068,120]
[421245470,1777287109260,-595.98,0.00035068,120]
[421245471,1777287109269,-1572.92,0.00035068,120]
[421245472,1777287109279,-500.0,0.00035068,120]
[421245473,1777287109289,-1223.21,0.00035068,120]
[421245474,1777287109299,-500.0,0.00035068,120]
[421245475,1777287109312,-276.42256143,0.00035068,120]
[421245476,1777287109322,-987.31,0.00035068,120]
[421245477,1777287109332,-500.0,0.00035068,120]
[421245478,1777287109341,-500.0,0.00035068,120]
[421245479,1777287109351,-685.94,0.00035068,120]
[421245480,1777287109361,-996.26,0.00035068,120]
[421245481,1777287109370,-977.11,0.00035068,120]
[421245482,1777287109379,-1114.4,0.00035068,120]
[421245483,1777287109389,-922.87,0.00035068,120]
[421245484,1777287109399,-694.64,0.00035068,120]
[421245485,1777287109409,-876.6,0.00035068,120]
[421245486,1777287109418,-1292.17,0.00035068,120]
[421245487,1777287109428,-500.0,0.00035068,120]
[421245488,1777287109438,-2804.65,0.00035068,120]
[421245489,1777287109448,-831.75,0.00035068,14]
[421245490,1777287109457,-500.0,0.00035068,120]
[421245491,1777287109467,-500.0,0.00035068,14]
[421245492,1777287109476,-695.08,0.00035068,120]
[421245493,1777287109486,-975.03,0.00035068,120]
[421245494,1777287109496,-500.0,0.00035068,120]
[421245495,1777287109506,-500.0,0.00035068,120]
[421245496,1777287109515,-515.24089041,0.00035068,120]
[421245497,1777287109525,-667.25,0.00035068,120]
[421245498,1777287109534,-500.0,0.00035068,120]
[421245499,1777287109544,-500.0,0.00035068,120]
[421245500,1777287109554,-500.0,0.00035068,120]
[421245501,1777287109564,-514.22,0.00035068,120]
[421245502,1777287109573,-809.84,0.00035068,120]
[421245503,1777287109583,-500.0,0.00035068,120]
[421245504,1777287109592,-808.81,0.00035068,120]
[421245505,1777287109602,-656.37,0.00035068,120]
[421245506,1777287109613,-924.49,0.00035068,120]
[421245507,1777287109623,-1754.83,0.00035068,120]
[421245508,1777287109632,-816.58,0.00035068,120]
[421245509,1777287109642,-1699.99,0.00035068,120]
[421245510,1777287109651,-963.43,0.00035068,120]
[421245511,1777287109660,-988.21,0.00035068,120]
[421245512,1777287109670,-500.0,0.00035068,120]
[421245513,1777287109679,-803.53,0.00035068,120]
[421245514,1777287109689,-983.75,0.00035068,120]
[421245515,1777287109699,-806.48,0.00035068,120]
[421245516,1777287109708,-1721.56,0.00035068,120]
[421245517,1777287109718,-899.89,0.00035068,120]
[421245518,1777287109727,-1666.52,0.00035068,120]
[421245519,1777287109736,-903.54,0.00035068,120]
[421245520,1777287109746,-640.16,0.00035068,120]
[421245521,1777287109755,-2805.42,0.00035068,120]
[421245522,1777287109768,-500.0,0.00035068,120]
[421245523,1777287109777,-500.0,0.00035068,120]
[421245524,1777287109787,-1658.74,0.00035068,120]
[421245525,1777287109797,-507.17,0.00035068,120]
[421245526,1777287109807,-500.0,0.00035068,120]
[421245527,1777287109816,-760.12,0.00035068,120]
[421245528,1777287109826,-1131.48,0.00035068,120]
[421245529,1777287109835,-500.0,0.00035068,120]
[421245530,1777287109844,-500.0,0.00035068,120]
[421245531,1777287109854,-1275.35,0.00035068,120]
[421245532,1777287109863,-1746.47,0.00035068,120]
[421245533,1777287109872,-1186.63,0.00035068,120]
[421245534,1777287109882,-726.02,0.00035068,120]
[421245535,1777287109891,-857.8,0.00035068,120]
[421245536,1777287109901,-500.0,0.00035068,120]
[421245537,1777287109910,-942.29,0.00035068,120]
[421245538,1777287109920,-500.0,0.00035068,90]
[421245539,1777287109929,-888.77,0.00035068,120]
[421245540,1777287109938,-615.52,0.00035068,120]
[421245541,1777287109948,-500.0,0.00035068,120]
[421245542,1777287109957,-691.21,0.00035068,120]
[421245543,1777287109967,-1549.89,0.00035068,120]
[421245544,1777287109977,-597.1,0.00035068,120]
[421245545,1777287109986,-500.0,0.00035068,120]
[421245546,1777287109996,-516.45,0.00035068,120]
[421245547,1777287110005,-646.3,0.00035068,120]
[421245548,1777287110015,-996.25,0.00035068,120]
[421245549,1777287110025,-729.86,0.00035068,120]
[421245550,1777287110034,-500.0,0.00035068,120]
[421245551,1777287110044,-862.2,0.00035068,120]
[421245552,1777287110054,-902.68,0.00035068,120]
[421245553,1777287110064,-500.0,0.00035068,120]
[421245554,1777287110075,-932.95,0.00035068,120]
[421245555,1777287110086,-501.5,0.00035068,120]
[421245556,1777287110096,-932.07,0.00035068,120]
[421245557,1777287110106,-282.44404454,0.00035068,120]
[421245558,1777287110116,-638.61,0.00035068,120]
[421245559,1777287110126,-946.6,0.00035068,120]
[421245560,1777287110136,-500.0,0.00035068,120]
[421245561,1777287110146,-1014.18,0.00035068,120]
[421245562,1777287110156,-500.0,0.00035068,120]
[421245563,1777287110165,-714.89,0.00035068,120]
[421245564,1777287110175,-1988.17,0.00035068,120]
[421245565,1777287110185,-563.81,0.00035068,120]
[421245566,1777287110195,-500.0,0.00035068,120]
[421245567,1777287110204,-500.0,0.00035068,120]
[421245568,1777287110217,-500.0,0.00035068,7]
[421245569,1777287110227,-500.0,0.00035068,120]
[421245570,1777287110237,-885.91,0.00035068,120]
[421245571,1777287110420,-1640.34,0.00035068,120]
[421245572,1777287110432,-500.0,0.00035068,120]
[421245573,1777287110442,-891.92,0.00035068,120]
[421245574,1777287110451,-669.56,0.00035068,120]
[421245575,1777287110460,-500.0,0.00035068,120]
[421245576,1777287110470,-1390.78,0.00035068,120]
[421245577,1777287110479,-500.0,0.00035068,120]
[421245578,1777287110488,-500.0,0.00035068,120]
[421245579,1777287110498,-500.0,0.00035068,120]
[421245580,1777287110508,-500.0,0.00035068,120]
[421245581,1777287110517,-500.0,0.00035068,60]
[421245582,1777287110526,-668.1,0.00035068,120]
[421245583,1777287110535,-500.0,0.00035068,120]
[421245584,1777287110544,-660.18,0.00035068,120]
[421245585,1777287110554,-691.69,0.00035068,120]
[421245586,1777287110562,-500.0,0.00035068,120]
[421245587,1777287110573,-691.03,0.00035068,120]
[421245588,1777287110582,-500.0,0.00035068,120]
[421245589,1777287110592,-618.59,0.00035068,30]
[421245590,1777287110600,-922.63,0.00035068,120]
[421245591,1777287110609,-953.58,0.00035068,120]
[421245592,1777287110619,-4917.9,0.00035068,120]
[421245593,1777287110629,-525.11,0.00035068,120]
[421245594,1777287110638,-551.36,0.00035068,120]
[421245595,1777287110647,-500.0,0.00035068,120]
[421245596,1777287110656,-840.29,0.00035068,120]
[421245597,1777287110666,-739.88,0.00035068,120]
[421245598,1777287110676,-919.84,0.00035068,120]
[421245599,1777287110685,-1800.54,0.00035068,120]
[421245600,1777287110694,-500.0,0.00035068,120]
[421245601,1777287110704,-1344.25,0.00035068,120]
[421245602,1777287110713,-500.0,0.00035068,30]
[421245603,1777287110722,-500.0,0.00035068,120]
[421245604,1777287110732,-916.78,0.00035068,120]
[421245605,1777287110742,-500.0,0.00035068,60]
[421245606,1777287110751,-1345.97,0.00035068,120]
[421245607,1777287110760,-1078.03,0.00035068,120]
[421245608,1777287110770,-500.0,0.00035068,120]
[421245609,1777287110780,-500.0,0.00035068,14]
[421245610,1777287110789,-947.63,0.00035068,120]
[421245611,1777287110803,-549.91,0.00035068,120]
[421245612,1777287110812,-456.5086021,0.00035068,120]
[421245613,1777287110821,-500.0,0.00035068,120]
[421245614,1777287110831,-748.29,0.00035068,120]
[421245615,1777287110840,-500.0,0.00035068,120]
[421245616,1777287110849,-1742.02,0.00035068,120]
[421245617,1777287110863,-980.13,0.00035068,120]
[421245618,1777287110873,-547.89,0.00035068,120]
[421245619,1777287110883,-500.0,0.00035068,120]
[421245620,1777287110892,-500.0,0.00035068,120]
[421245621,1777287110901,-808.71,0.00035068,120]
[421245622,1777287110911,-697.0,0.00035068,120]
[421245623,1777287110920,-610.69734348,0.00035068,120]
[421245624,1777287110929,-698.74,0.00035068,120]
[421245625,1777287110939,-500.0,0.00035068,120]
[421245626,1777287110948,-861.18,0.00035068,120]
[421245627,1777287110959,-500.0,0.00035068,120]
[421245628,1777287110968,-599.72,0.00035068,120]
[421245629,1777287110978,-971.15,0.00035068,120]
[421245630,1777287110987,-1898.91,0.00035068,120]
[421245631,1777287110996,-2008.02,0.00035068,120]
[421245632,1777287111006,-500.0,0.00035068,120]
[421245633,1777287111015,-546.88,0.00035068,120]
[421245634,1777287111024,-500.0,0.00035068,120]
[421245635,1777287111034,-500.0,0.00035068,120]
[421245636,1777287111043,-933.2,0.00035068,120]
[421245637,1777287111053,-923.43,0.00035068,120]
[421245638,1777287111063,-814.23,0.00035068,7]
[421245639,1777287111082,-500.0,0.00035068,120]
[421245640,1777287111092,-545.89,0.00035068,120]
[421245641,1777287111102,-500.0,0.00035068,120]
[421245642,1777287111111,-607.22,0.00035068,120]
[421245643,1777287111120,-500.0,0.00035068,120]
[421245644,1777287111129,-1022.01,0.00035068,120]
[421245645,1777287111139,-1403.37,0.00035068,120]
[421245646,1777287111149,-571.92,0.00035068,120]
[421245647,1777287111158,-996.98,0.00035068,120]
[421245648,1777287111168,-500.0,0.00035068,120]
[421245649,1777287111179,-500.0,0.00035068,120]
[421245650,1777287111188,-201.27661084,0.00035068,120]
[421245651,1777287111198,-500.0,0.00035068,120]
[421245652,1777287111207,-500.0,0.00035068,120]
[421245653,1777287111217,-500.0,0.00035068,120]
[421245654,1777287111226,-500.0,0.00035068,120]
[421245655,1777287111235,-500.0,0.00035068,120]
[421245656,1777287111245,-2027.39,0.00035068,120]
[421245657,1777287111255,-500.0,0.00035068,120]
[421245658,1777287111265,-544.78,0.00035068,120]
[421245659,1777287111275,-1173.63,0.00035068,120]
[421245660,1777287111284,-580.92,0.00035068,120]
[421245661,1777287111294,-500.0,0.00035068,120]
[421245662,1777287111303,-500.0,0.00035068,120]
[421245663,1777287111312,-500.0,0.00035068,120]
[421245664,1777287111321,-957.19,0.00035068,120]
[421245665,1777287111331,-500.0,0.00035068,120]
[421245666,1777287111340,-500.0,0.00035068,120]
[421245667,1777287111349,-1129.42,0.00035068,120]
[421245668,1777287111358,-549.6,0.00035068,120]
[421245669,1777287111368,-500.0,0.00035068,120]
[421245670,1777287111377,-500.0,0.00035068,120]
[421245671,1777287111387,-500.0,0.00035068,120]
[421245672,1777287111396,-500.0,0.00035068,120]
[421245673,1777287111406,-957.72,0.00035068,120]
[421245674,1777287111415,-472.40457558,0.00035068,120]
[421245675,1777287111424,-2273.93,0.00035068,120]
[421245676,1777287111434,-500.0,0.00035068,120]
[421245677,1777287111443,-500.0,0.00035068,120]
[421245678,1777287111452,-531.34,0.00035068,120]
[421245679,1777287111462,-500.0,0.00035068,120]
[421245680,1777287111471,-500.0,0.00035068,120]
[421245681,1777287111480,-826.33,0.00035068,120]
[421245682,1777287111489,-500.0,0.00035068,120]
[421245683,1777287111499,-509.36,0.00035068,120]
[421245684,1777287111508,-500.0,0.00035068,120]
[421245685,1777287111517,-1144.83,0.00035068,120]
[421245686,1777287111527,-870.72,0.00035068,120]
[421245687,1777287111536,-500.0,0.00035068,120]
[421245688,1777287111546,-438.97120325,0.00035068,120]
[421245689,1777287111555,-500.0,0.00035068,120]
[421245690,1777287111565,-1987.57,0.00035068,120]
[421245691,1777287111574,-1889.91,0.00035068,120]
[421245692,1777287111584,-997.41,0.00035068,120]
[421245693,1777287111593,-500.0,0.00035068,120]
[421245694,1777287111602,-500.0,0.00035068,16]
[421245695,1777287111611,-645.47,0.00035068,120]
[421245696,1777287111620,-551.39,0.00035068,120]
[421245697,1777287111629,-500.0,0.00035068,120]
[421245698,1777287111639,-607.71,0.00035068,120]
[421245699,1777287111648,-471.98543274,0.00035068,120]
[421245700,1777287111658,-500.0,0.00035068,120]
[421245701,1777287111667,-1410.28,0.00035068,120]
[421245702,1777287111677,-1075.28,0.00035068,120]
[421245703,1777287111687,-512.2,0.00035068,120]
[421245704,1777287111696,-500.0,0.00035068,120]
[421245705,1777287111705,-571.84,0.00035068,120]
[421245706,1777287111714,-500.0,0.00035068,120]
[421245707,1777287111723,-670.88,0.00035068,120]
[421245708,1777287111733,-927.87,0.00035068,120]
[421245709,1777287111742,-348.7760405,0.00035068,120]
[421245710,1777287111752,-733.46,0.00035068,120]
[421245711,1777287111762,-500.0,0.00035068,120]
[421245712,1777287111771,-845.56,0.00035068,120]
[421245713,1777287111781,-500.0,0.00035068,120]
[421245714,1777287111791,-500.0,0.00035068,120]
[421245715,1777287111801,-500.0,0.00035068,120]
[421245716,1777287111810,-1708.75,0.00035068,120]
[421245717,1777287111820,-500.0,0.00035068,120]
[421245718,1777287111830,-1389.02,0.00035068,120]
[421245719,1777287111840,-721.4,0.00035068,120]
[421245720,1777287111850,-969.99,0.00035068,120]
[421245721,1777287111859,-500.0,0.00035068,120]
[421245722,1777287111869,-500.0,0.00035068,120]
[421245723,1777287111879,-832.2,0.00035068,120]
[421245724,1777287111888,-1256.96,0.00035068,120]
[421245725,1777287111898,-822.73,0.00035068,120]
[421245726,1777287111908,-1697.87,0.00035068,120]
[421245727,1777287111916,-725.79,0.00035068,120]
[421245728,1777287111925,-740.81,0.00035068,120]
[421245729,1777287111935,-704.65,0.00035068,120]
[421245730,1777287111944,-767.5,0.00035068,120]
[421245731,1777287111954,-874.64,0.00035068,120]
[421245732,1777287111964,-500.0,0.00035068,120]
[421245733,1777287111973,-198.77183897,0.00035068,120]
[421245734,1777287111983,-500.0,0.00035068,120]
[421245735,1777287111992,-539.51,0.00035068,120]
[421245736,1777287112002,-1571.63,0.00035068,120]
[421245737,1777287112011,-3139.33,0.00035068,120]
[421245738,1777287112021,-503.2119032,0.00035068,120]
[421245739,1777287112031,-631.89,0.00035068,120]
[421245740,1777287112041,-500.0,0.00035068,120]
[421245741,1777287112052,-724.47,0.00035068,120]
[421245742,1777287112061,-830.35,0.00035068,120]
[421245743,1777287112072,-714.42,0.00035068,120]
[421245744,1777287112082,-529.87,0.00035068,120]
[421245745,1777287112092,-890.53,0.00035068,120]
[421245746,1777287112102,-633.28,0.00035068,120]
[421245747,1777287112113,-1042.08,0.00035068,120]
[421245748,1777287112123,-500.0,0.00035068,120]
[421245749,1777287112134,-1031.26,0.00035068,120]
[421245750,1777287112152,-500.0,0.00035068,120]
[421245751,1777287112164,-789.82,0.00035068,120]
[421245752,1777287112175,-524.95274971,0.00035068,120]
[421245753,1777287112188,-500.0,0.00035068,120]
[421245754,1777287112199,-1044.44,0.00035068,7]
[421245755,1777287112209,-500.0,0.00035068,120]
[421245756,1777287112220,-188.41424055,0.00035068,120]
[421245757,1777287112229,-500.0,0.00035068,120]
[421245758,1777287112239,-500.0,0.00035068,120]
[421245759,1777287112249,-500.0,0.00035068,120]
[421245760,1777287112259,-2152.64,0.00035068,120]
[421245761,1777287112269,-500.0,0.00035068,120]
[421245762,1777287112278,-500.0,0.00035068,120]
[421245763,1777287112288,-951.45,0.00035068,120]
[421245764,1777287112297,-10570.76,0.00035068,120]
[421245765,1777287112307,-500.0,0.00035068,120]
[421245766,1777287112318,-500.0,0.00035068,120]
[421245767,1777287112328,-953.25,0.00035068,120]
[421245768,1777287112338,-389.6469862,0.00035068,120]
[421245769,1777287112347,-683.94,0.00035068,120]
[421245770,1777287112357,-1457.61,0.00035068,120]
[421245771,1777287112367,-500.0,0.00035068,120]
[421245772,1777287112376,-500.0,0.00035068,120]
[421245773,1777287112385,-853.59,0.00035068,120]
[421245774,1777287112395,-927.26,0.00035068,120]
[421245775,1777287112405,-692.0,0.00035068,120]
[421245776,1777287112414,-500.0,0.00035068,120]
[421245777,1777287112424,-1072.51,0.00035068,120]
[421245778,1777287112434,-2915.57,0.00035068,120]
[421245779,1777287112443,-500.0,0.00035068,120]
[421245780,1777287112453,-731.44,0.00035068,120]
[421245781,1777287112463,-500.0,0.00035068,120]
[421245782,1777287112472,-701.43,0.00035068,120]
[421245783,1777287112483,-500.0,0.00035068,120]
[421245784,1777287112493,-954.88,0.00035068,120]
[421245785,1777287112503,-838.15,0.00035068,120]
[421245786,1777287112513,-1783.16,0.00035068,120]
[421245787,1777287112522,-500.0,0.00035068,120]
[421245788,1777287112533,-500.0,0.00035068,120]
[421245789,1777287112542,-500.0,0.00035068,120]
[421245790,1777287112552,-500.0,0.00035068,120]
[421245791,1777287112563,-4705.11,0.00035068,120]
[421245792,1777287112572,-1730.6,0.00035068,120]
[421245793,1777287112581,-500.0,0.00035068,120]
[421245794,1777287112590,-1123.77,0.00035068,120]
[421245795,1777287112600,-500.0,0.00035068,120]
[421245796,1777287112610,-500.0,0.00035068,120]
[421245797,1777287112620,-1408.68,0.00035068,120]
[421245798,1777287112630,-714.81,0.00035068,120]
[421245799,1777287112639,-1779.59,0.00035068,120]
[421245800,1777287112649,-500.0,0.00035068,120]
[421245801,1777287112659,-667.82,0.00035068,120]
[421245802,1777287112669,-5381.05,0.00035068,120]
[421245803,1777287112678,-922.62,0.00035068,120]
[421245804,1777287112688,-625.44,0.00035068,5]
[421245805,1777287112697,-500.0,0.00035068,120]
[421245806,1777287112707,-1690.78,0.00035068,120]
[421245807,1777287112716,-2035.1,0.00035068,120]
[421245808,1777287112725,-674.61,0.00035068,120]
[421245809,1777287112735,-500.0,0.00035068,120]
[421245810,1777287112744,-1164.41,0.00035068,120]
[421245811,1777287112754,-1082.08,0.00035068,120]
[421245812,1777287112764,-500.0,0.00035068,120]
[421245813,1777287112774,-998.96,0.00035068,120]
[421245814,1777287112784,-1043.04,0.00035068,120]
[421245815,1777287112794,-784.08,0.00035068,120]
[421245816,1777287112804,-1079.64,0.00035068,120]
[421245817,1777287112814,-1143.94,0.00035068,120]
[421245818,1777287112823,-500.0,0.00035068,120]
[421245819,1777287112832,-1451.57,0.00035068,120]
[421245820,1777287112843,-500.0,0.00035068,120]
[421245821,1777287112852,-559.14924803,0.00035068,120]
[421245822,1777287112862,-819.21,0.00035068,120]
[421245823,1777287112872,-1138.56,0.00035068,120]
[421245824,1777287112882,-601.09,0.00035068,120]
[421245825,1777287112892,-4201.7,0.00035068,120]
[421245826,1777287112902,-996.55,0.00035068,120]
[421245827,1777287112912,-1047.55,0.00035068,120]
[421245828,1777287112922,-541.91,0.00035068,120]
[421245829,1777287112931,-500.0,0.00035068,120]
[421245830,1777287112941,-500.0,0.00035068,120]
[421245831,1777287112951,-500.0,0.00035068,120]
[421245832,1777287112961,-795.18,0.00035068,120]
[421245833,1777287112973,-1162.36,0.00035068,120]
[421245834,1777287112983,-500.0,0.00035068,120]
[421245835,1777287112993,-500.0,0.00035068,120]
[421245836,1777287113004,-845.1,0.00035068,120]
[421245837,1777287113014,-1487.38,0.00035068,120]
[421245838,1777287113024,-500.0,0.00035068,120]
[421245839,1777287113033,-500.0,0.00035068,120]
[421245840,1777287113043,-500.0,0.00035068,120]
[421245841,1777287113053,-898.94,0.00035068,120]
[421245842,1777287113063,-255.76545778,0.00035068,120]
[421245843,1777287113073,-500.0,0.00035068,120]
[421245844,1777287113083,-500.0,0.00035068,120]
[421245845,1777287113092,-2636.09,0.00035068,120]
[421245846,1777287113103,-500.0,0.00035068,120]
[421245847,1777287113112,-500.62,0.00035068,120]
[421245848,1777287113122,-1789.45,0.00035068,120]
[421245849,1777287113131,-500.0,0.00035068,120]
[421245850,1777287113140,-1085.3,0.00035068,120]
[421245851,1777287113150,-892.08,0.00035068,120]
[421245852,1777287113159,-500.0,0.00035068,120]
[421245853,1777287113170,-631.37,0.00035068,120]
[421245854,1777287113179,-581.62,0.00035068,120]
[421245855,1777287113189,-808.43,0.00035068,120]
[421245856,1777287113199,-741.62,0.00035068,120]
[421245857,1777287113208,-500.0,0.00035068,120]
[421245858,1777287113218,-500.0,0.00035068,120]
[421245859,1777287113232,-500.0,0.00035068,120]
[421245860,1777287113242,-500.0,0.00035068,120]